[Event "*** Titled Tuesday Blitz"]
[Site "Chess.com"]
[Date "2021.03.30"]
[Round "8"]
[White "paulrusan"]
[Black "woodhy"]
[Result "1-0"]
[WhiteElo "2322"]
[BlackElo "2435"]
[TimeControl "180+1"]
[EndTime "11:27:37 PDT"]
[Termination "paulrusan won by resignation"]

1. e4 {[%clk 0:02:59.7]} 1... e6 {[%clk 0:02:57.6]} 2. Nf3 {[%clk 0:02:58.5]}
2... d5 {[%clk 0:02:57.1]} 3. e5 {[%clk 0:02:58.5]} 3... c5 {[%clk 0:02:56.7]}
4. b4 {[%clk 0:02:58.4]} 4... d4 {[%clk 0:02:57.2]} 5. bxc5 {[%clk 0:02:57.1]}
5... Bxc5 {[%clk 0:02:58.1]} 6. Ba3 {[%clk 0:02:56.6]} 6... Qd5 {[%clk
0:02:36.6]} 7. Bxc5 {[%clk 0:02:49.8]} 7... Qxc5 {[%clk 0:02:27.4]} 8. c3 {[%clk
0:02:49]} 8... Nc6 {[%clk 0:02:23.3]} 9. cxd4 {[%clk 0:02:48.7]} 9... Nxd4
{[%clk 0:02:17.1]} 10. Qa4+ {[%clk 0:02:48.7]} 10... Nc6 {[%clk 0:02:15.6]} 11.
Nc3 {[%clk 0:02:44.4]} 11... Bd7 {[%clk 0:02:05.8]} 12. Ne4 {[%clk 0:02:43.3]}
12... Qb4 {[%clk 0:01:57.7]} 13. Bb5 {[%clk 0:02:28.1]} 13... Nge7 {[%clk
0:01:35.8]} 14. Nd6+ {[%clk 0:02:23.3]} 14... Kf8 {[%clk 0:01:31.4]} 15. Qxb4
{[%clk 0:02:05]} 15... Nxb4 {[%clk 0:01:30.1]} 16. Bxd7 {[%clk 0:02:04.6]} 16...
Nc2+ {[%clk 0:01:29.3]} 17. Ke2 {[%clk 0:02:04.7]} 17... Nxa1 {[%clk 0:01:29.8]}
18. Rxa1 {[%clk 0:02:04.2]} 18... Rd8 {[%clk 0:01:29.5]} 19. Ba4 {[%clk
0:01:56.8]} 19... b6 {[%clk 0:01:24.1]} 20. Rc1 {[%clk 0:01:52.6]} 20... Nd5
{[%clk 0:01:19.2]} 21. g3 {[%clk 0:01:43.2]} 21... h6 {[%clk 0:01:17.4]} 22. Bc6
{[%clk 0:01:33]} 22... Nb4 {[%clk 0:01:15.3]} 23. Be4 {[%clk 0:01:28.4]} 23...
f5 {[%clk 0:01:11.3]} 24. Bb1 {[%clk 0:01:26.3]} 24... Nd5 {[%clk 0:01:06.7]}
25. a3 {[%clk 0:01:22.2]} 25... g5 {[%clk 0:00:54.7]} 26. Ba2 {[%clk 0:01:20.3]}
26... Ke7 {[%clk 0:00:52.4]} 27. Nd4 {[%clk 0:01:13.7]} 27... Rhf8 {[%clk
0:00:31.3]} 28. Nc6+ {[%clk 0:01:06.6]} 28... Kd7 {[%clk 0:00:28.8]} 29. Bxd5
{[%clk 0:01:03.7]} 29... exd5 {[%clk 0:00:27.1]} 30. Nxd8 {[%clk 0:01:03.5]}
30... Rxd8 {[%clk 0:00:27.7]} 31. Nxf5 {[%clk 0:01:02.3]} 31... Ke6 {[%clk
0:00:26.9]} 32. Nd4+ {[%clk 0:01:00.7]} 32... Kxe5 {[%clk 0:00:27.1]} 33. Nc6+
{[%clk 0:01:00.7]} 1-0

[Event "*** Titled Tuesday Blitz"]
[Site "Chess.com"]
[Date "2021.03.30"]
[Round "8"]
[White "Kozok"]
[Black "AlexPapasimakopoulos"]
[Result "0-1"]
[WhiteElo "2497"]
[BlackElo "2628"]
[TimeControl "180+1"]
[EndTime "11:27:39 PDT"]
[Termination "AlexPapasimakopoulos won by resignation"]

1. e4 {[%clk 0:03:00.9]} 1... e6 {[%clk 0:03:00]} 2. d4 {[%clk 0:03:00.3]} 2...
d5 {[%clk 0:03:00.1]} 3. Nc3 {[%clk 0:02:59.3]} 3... Bb4 {[%clk 0:02:59.5]} 4.
e5 {[%clk 0:02:58.8]} 4... b6 {[%clk 0:02:59.5]} 5. Qg4 {[%clk 0:02:57.3]} 5...
Bf8 {[%clk 0:02:59.8]} 6. h4 {[%clk 0:02:54.8]} 6... Qd7 {[%clk 0:02:59.5]} 7.
h5 {[%clk 0:02:53.5]} 7... h6 {[%clk 0:03:00]} 8. g3 {[%clk 0:02:47.7]} 8... Ne7
{[%clk 0:03:00.3]} 9. Bd3 {[%clk 0:02:44.3]} 9... Ba6 {[%clk 0:03:00.4]} 10. Qe2
{[%clk 0:02:40]} 10... Bxd3 {[%clk 0:02:59.9]} 11. Qxd3 {[%clk 0:02:40.9]} 11...
c5 {[%clk 0:02:59.5]} 12. Nge2 {[%clk 0:02:26]} 12... Nbc6 {[%clk 0:02:58.8]}
13. f4 {[%clk 0:02:13.6]} 13... Nf5 {[%clk 0:02:56]} 14. Be3 {[%clk 0:02:06]}
14... cxd4 {[%clk 0:02:50.8]} 15. Bxd4 {[%clk 0:02:02.1]} 15... Bc5 {[%clk
0:02:33.8]} 16. Bf2 {[%clk 0:01:47.7]} 16... Bxf2+ {[%clk 0:02:12]} 17. Kxf2
{[%clk 0:01:48.6]} 17... Nfe7 {[%clk 0:02:09.4]} 18. Nb5 {[%clk 0:01:43.3]}
18... O-O {[%clk 0:02:09]} 19. Ned4 {[%clk 0:01:37.6]} 19... f6 {[%clk
0:02:09.1]} 20. exf6 {[%clk 0:01:36.1]} 20... Rxf6 {[%clk 0:02:10]} 21. Kg2
{[%clk 0:01:26.8]} 21... e5 {[%clk 0:02:10]} 22. fxe5 {[%clk 0:01:24.2]} 22...
Nxe5 {[%clk 0:02:10.9]} 23. Qe2 {[%clk 0:01:22.5]} 23... N7c6 {[%clk 0:01:40.2]}
24. Rhf1 {[%clk 0:01:15.8]} 24... Rxf1 {[%clk 0:01:35.6]} 25. Rxf1 {[%clk
0:01:13.7]} 25... Re8 {[%clk 0:01:36.2]} 26. Qd2 {[%clk 0:01:00.5]} 26... Nc4
{[%clk 0:01:33.4]} 27. Qf4 {[%clk 0:00:41.8]} 27... Ne3+ {[%clk 0:01:33.1]} 28.
Kh2 {[%clk 0:00:40.2]} 28... Nxf1+ {[%clk 0:01:32.2]} 29. Qxf1 {[%clk
0:00:41.1]} 29... Nxd4 {[%clk 0:01:30.7]} 30. Nxd4 {[%clk 0:00:42]} 30... Qg4
{[%clk 0:01:30.3]} 31. c3 {[%clk 0:00:39.5]} 31... Qxh5+ {[%clk 0:01:30]} 32.
Kg2 {[%clk 0:00:40.4]} 32... Qf7 {[%clk 0:01:29.6]} 33. Qd3 {[%clk 0:00:40.2]}
33... Rf8 {[%clk 0:01:29.4]} 34. Qe2 {[%clk 0:00:40.3]} 34... Re8 {[%clk
0:01:28.7]} 35. Qd3 {[%clk 0:00:40.5]} 35... Qf6 {[%clk 0:01:24.1]} 36. a4
{[%clk 0:00:37.8]} 36... Qe5 {[%clk 0:01:23.8]} 37. b4 {[%clk 0:00:36.6]} 37...
Qe4+ {[%clk 0:01:24]} 38. Qxe4 {[%clk 0:00:35.9]} 38... Rxe4 {[%clk 0:01:19.1]}
39. a5 {[%clk 0:00:36.8]} 39... Rxd4 {[%clk 0:01:18.9]} 40. cxd4 {[%clk
0:00:37]} 40... bxa5 {[%clk 0:01:18.8]} 41. bxa5 {[%clk 0:00:37.9]} 41... Kf7
{[%clk 0:01:18.6]} 42. Kf3 {[%clk 0:00:38.8]} 42... Kf6 {[%clk 0:01:18.1]} 43.
Kf4 {[%clk 0:00:39.7]} 43... g5+ {[%clk 0:01:17.2]} 44. Kg4 {[%clk 0:00:38.7]}
44... Kg6 {[%clk 0:01:17.5]} 45. Kf3 {[%clk 0:00:39.3]} 45... h5 {[%clk
0:01:17.8]} 46. g4 {[%clk 0:00:38.8]} 46... h4 {[%clk 0:01:18]} 47. Kg2 {[%clk
0:00:38.8]} 47... Kf6 {[%clk 0:01:18.6]} 0-1

[Event "*** Titled Tuesday Blitz"]
[Site "Chess.com"]
[Date "2021.03.30"]
[Round "8"]
[White "BanjoKazooieN64"]
[Black "DKmirl"]
[Result "1-0"]
[WhiteElo "2539"]
[BlackElo "1975"]
[TimeControl "180+1"]
[EndTime "11:27:42 PDT"]
[Termination "BanjoKazooieN64 won by checkmate"]

1. e4 {[%clk 0:03:00.9]} 1... c5 {[%clk 0:02:59.8]} 2. Nc3 {[%clk 0:03:00]} 2...
Nc6 {[%clk 0:02:59.7]} 3. f4 {[%clk 0:02:59.7]} 3... g6 {[%clk 0:02:59.8]} 4.
Nf3 {[%clk 0:02:59.5]} 4... Bg7 {[%clk 0:03:00.1]} 5. Bc4 {[%clk 0:02:59.5]}
5... d6 {[%clk 0:02:53.2]} 6. O-O {[%clk 0:02:59.1]} 6... Nf6 {[%clk 0:02:47.8]}
7. d3 {[%clk 0:02:59]} 7... O-O {[%clk 0:02:47.7]} 8. Qe1 {[%clk 0:02:51.8]}
8... Na5 {[%clk 0:02:45.8]} 9. Qh4 {[%clk 0:02:41.5]} 9... Nxc4 {[%clk
0:02:44.6]} 10. dxc4 {[%clk 0:02:42.4]} 10... Be6 {[%clk 0:02:32.8]} 11. f5
{[%clk 0:02:42.4]} 11... Bxc4 {[%clk 0:02:30.4]} 12. Bh6 {[%clk 0:02:41.8]}
12... Bxf1 {[%clk 0:02:18.5]} 13. Rxf1 {[%clk 0:02:42.7]} 13... e6 {[%clk
0:02:02.3]} 14. Ng5 {[%clk 0:01:50.4]} 14... Nh5 {[%clk 0:01:51.4]} 15. Bxg7
{[%clk 0:01:13.8]} 15... Kxg7 {[%clk 0:01:40.3]} 16. f6+ {[%clk 0:01:03.7]}
16... Kg8 {[%clk 0:01:39.9]} 17. g4 {[%clk 0:01:00.7]} 17... h6 {[%clk
0:01:02.8]} 18. gxh5 {[%clk 0:01:00.4]} 18... hxg5 {[%clk 0:01:02.8]} 19. Qxg5
{[%clk 0:00:59.1]} 19... Kh7 {[%clk 0:01:02.4]} 20. hxg6+ {[%clk 0:00:42.2]}
20... fxg6 {[%clk 0:01:01.8]} 21. Rf4 {[%clk 0:00:37.3]} 21... Qe8 {[%clk
0:00:36]} 22. Rh4+ {[%clk 0:00:34.6]} 22... Kg8 {[%clk 0:00:35.2]} 23. Rh8+
{[%clk 0:00:34.3]} 23... Kxh8 {[%clk 0:00:32.2]} 24. Qh6+ {[%clk 0:00:34.3]}
24... Kg8 {[%clk 0:00:26.2]} 25. Qg7# {[%clk 0:00:35.2]} 1-0

[Event "*** Titled Tuesday Blitz"]
[Site "Chess.com"]
[Date "2021.03.30"]
[Round "8"]
[White "Nice_2_M8te_U"]
[Black "shnitez"]
[Result "1-0"]
[WhiteElo "2587"]
[BlackElo "2472"]
[TimeControl "180+1"]
[EndTime "11:27:45 PDT"]
[Termination "Nice_2_M8te_U won on time"]

1. d4 {[%clk 0:02:40.8]} 1... Nf6 {[%clk 0:02:58.1]} 2. Nc3 {[%clk 0:02:41]}
2... d5 {[%clk 0:02:57.7]} 3. Bf4 {[%clk 0:02:41.4]} 3... e6 {[%clk 0:02:55.7]}
4. e3 {[%clk 0:02:40.9]} 4... a6 {[%clk 0:02:54.5]} 5. g4 {[%clk 0:02:40.7]}
5... Bb4 {[%clk 0:02:53.2]} 6. Bd3 {[%clk 0:02:32.7]} 6... c5 {[%clk 0:02:51.2]}
7. dxc5 {[%clk 0:02:32.9]} 7... Qa5 {[%clk 0:02:45.8]} 8. Ne2 {[%clk 0:02:32.1]}
8... Nbd7 {[%clk 0:02:40.9]} 9. g5 {[%clk 0:02:25.2]} 9... Ne4 {[%clk
0:02:18.3]} 10. Bxe4 {[%clk 0:02:22.2]} 10... dxe4 {[%clk 0:02:19.2]} 11. a3
{[%clk 0:02:22.7]} 11... Bxc3+ {[%clk 0:02:17.5]} 12. Nxc3 {[%clk 0:02:23.6]}
12... Qxc5 {[%clk 0:02:04.4]} 13. Nxe4 {[%clk 0:02:23.2]} 13... Qc6 {[%clk
0:01:54.9]} 14. Nd6+ {[%clk 0:02:10.7]} 14... Ke7 {[%clk 0:01:54.2]} 15. O-O
{[%clk 0:02:11.3]} 15... Rd8 {[%clk 0:01:50.6]} 16. Qh5 {[%clk 0:02:05.1]} 16...
Rf8 {[%clk 0:00:58.7]} 17. Rad1 {[%clk 0:02:02.5]} 17... Nc5 {[%clk 0:00:19.8]}
18. Nxc8+ {[%clk 0:01:59.1]} 18... Raxc8 {[%clk 0:00:18.8]} 19. Bd6+ {[%clk
0:01:59]} 19... Ke8 {[%clk 0:00:18.8]} 20. Qxh7 {[%clk 0:01:51.7]} 20... Ne4
{[%clk 0:00:09.1]} 21. Bxf8 {[%clk 0:01:36.6]} 21... Kxf8 {[%clk 0:00:10]} 22.
h4 {[%clk 0:01:26.9]} 22... g6 {[%clk 0:00:09]} 23. f3 {[%clk 0:01:22.2]} 23...
Nc5 {[%clk 0:00:05.7]} 24. Qh8+ {[%clk 0:01:21.4]} 24... Ke7 {[%clk 0:00:05.9]}
25. Qf6+ {[%clk 0:01:22.1]} 25... Ke8 {[%clk 0:00:05.5]} 26. Rd4 {[%clk
0:01:20.5]} 26... Nd7 {[%clk 0:00:05.4]} 27. Qg7 {[%clk 0:01:17.1]} 27... Ke7
{[%clk 0:00:04.6]} 28. Rfd1 {[%clk 0:01:15.4]} 28... Rc7 {[%clk 0:00:02.5]} 29.
Rf4 {[%clk 0:01:01.7]} 1-0

[Event "*** Titled Tuesday Blitz"]
[Site "Chess.com"]
[Date "2021.03.30"]
[Round "8"]
[White "Skat2704"]
[Black "jaskol95"]
[Result "1-0"]
[WhiteElo "2622"]
[BlackElo "2414"]
[TimeControl "180+1"]
[EndTime "11:27:45 PDT"]
[Termination "Skat2704 won on time"]

1. d4 {[%clk 0:03:00.9]} 1... e6 {[%clk 0:02:57.6]} 2. c4 {[%clk 0:02:59.8]}
2... f5 {[%clk 0:02:58.1]} 3. g3 {[%clk 0:02:58.6]} 3... Nf6 {[%clk 0:02:58.1]}
4. Bg2 {[%clk 0:02:58.1]} 4... Be7 {[%clk 0:02:58.5]} 5. Nc3 {[%clk 0:02:55.4]}
5... d6 {[%clk 0:02:57.6]} 6. Nf3 {[%clk 0:02:53.7]} 6... O-O {[%clk 0:02:57.1]}
7. O-O {[%clk 0:02:52.6]} 7... Qe8 {[%clk 0:02:53.2]} 8. Bf4 {[%clk 0:02:49.7]}
8... Ne4 {[%clk 0:02:39.4]} 9. Nxe4 {[%clk 0:02:44]} 9... fxe4 {[%clk
0:02:40.3]} 10. Nd2 {[%clk 0:02:42.2]} 10... d5 {[%clk 0:02:39.5]} 11. Qb3
{[%clk 0:02:36.2]} 11... c6 {[%clk 0:02:30.5]} 12. f3 {[%clk 0:02:25.8]} 12...
exf3 {[%clk 0:02:29.5]} 13. Nxf3 {[%clk 0:02:22.5]} 13... Nd7 {[%clk 0:02:24.9]}
14. Ne5 {[%clk 0:02:18.9]} 14... Nxe5 {[%clk 0:02:22]} 15. Bxe5 {[%clk
0:02:19.3]} 15... b6 {[%clk 0:02:03.8]} 16. e4 {[%clk 0:02:14.8]} 16... Rxf1+
{[%clk 0:01:32.2]} 17. Rxf1 {[%clk 0:02:10.1]} 17... Ba6 {[%clk 0:01:31]} 18.
exd5 {[%clk 0:02:07.4]} 18... exd5 {[%clk 0:01:30.4]} 19. cxd5 {[%clk
0:02:00.2]} 19... Bxf1 {[%clk 0:01:31.3]} 20. dxc6+ {[%clk 0:01:59.9]} 20... Kh8
{[%clk 0:01:20.9]} 21. Kxf1 {[%clk 0:01:58.4]} 21... Rc8 {[%clk 0:01:13.2]} 22.
d5 {[%clk 0:01:54.6]} 22... Bc5 {[%clk 0:01:07.4]} 23. Bf4 {[%clk 0:01:50.9]}
23... Qg6 {[%clk 0:00:42.1]} 24. Bf3 {[%clk 0:01:43.8]} 24... Qb1+ {[%clk
0:00:26.6]} 25. Kg2 {[%clk 0:01:39.5]} 25... Qg1+ {[%clk 0:00:27.2]} 26. Kh3
{[%clk 0:01:36.8]} 26... Qf1+ {[%clk 0:00:26.4]} 27. Bg2 {[%clk 0:01:34.3]}
27... Qe2 {[%clk 0:00:25.1]} 28. Qf3 {[%clk 0:01:31.2]} 28... Qxb2 {[%clk
0:00:20.6]} 29. d6 {[%clk 0:01:26.5]} 29... Bxd6 {[%clk 0:00:04.5]} 30. Bxd6
{[%clk 0:01:24.3]} 30... Qxa2 {[%clk 0:00:03.5]} 31. Qf5 {[%clk 0:01:19.5]}
31... Rg8 {[%clk 0:00:01.6]} 32. c7 {[%clk 0:01:15.9]} 1-0

[Event "*** Titled Tuesday Blitz"]
[Site "Chess.com"]
[Date "2021.03.30"]
[Round "8"]
[White "grandcoach"]
[Black "artichaud"]
[Result "1-0"]
[WhiteElo "2268"]
[BlackElo "2102"]
[TimeControl "180+1"]
[EndTime "11:27:45 PDT"]
[Termination "grandcoach won on time"]

1. e4 {[%clk 0:03:00.9]} 1... d5 {[%clk 0:03:00]} 2. exd5 {[%clk 0:03:00.4]}
2... Qxd5 {[%clk 0:03:00.9]} 3. Nc3 {[%clk 0:03:00.6]} 3... Qd6 {[%clk
0:03:00.7]} 4. Bc4 {[%clk 0:02:56.8]} 4... Nf6 {[%clk 0:03:00.1]} 5. d4 {[%clk
0:02:53.4]} 5... a6 {[%clk 0:02:57.8]} 6. Nf3 {[%clk 0:02:53.3]} 6... e6 {[%clk
0:02:50.2]} 7. Ne5 {[%clk 0:02:51.8]} 7... Nc6 {[%clk 0:02:41.6]} 8. Bf4 {[%clk
0:02:44.5]} 8... Nxe5 {[%clk 0:02:20.8]} 9. Bxe5 {[%clk 0:02:33.5]} 9... Qc6
{[%clk 0:02:14.6]} 10. Qe2 {[%clk 0:02:21.3]} 10... Bb4 {[%clk 0:02:01.9]} 11.
d5 {[%clk 0:02:07.5]} 11... Nxd5 {[%clk 0:01:54.8]} 12. Bxd5 {[%clk 0:02:04]}
12... Qxd5 {[%clk 0:01:53.9]} 13. Rd1 {[%clk 0:02:01.7]} 13... Qxg2 {[%clk
0:01:49.4]} 14. Kd2 {[%clk 0:01:53]} 14... Bd7 {[%clk 0:01:28.9]} 15. Rhg1
{[%clk 0:01:42.9]} 15... Qc6 {[%clk 0:01:27.9]} 16. Bxg7 {[%clk 0:01:29.4]}
16... Rg8 {[%clk 0:01:24.4]} 17. Bf6 {[%clk 0:01:22.5]} 17... Rg6 {[%clk
0:01:22.8]} 18. Rxg6 {[%clk 0:01:19.7]} 18... hxg6 {[%clk 0:00:57]} 19. Kc1
{[%clk 0:01:16.2]} 19... Be7 {[%clk 0:00:11]} 20. Ne4 {[%clk 0:01:08.9]} 20...
Rd8 {[%clk 0:00:05.4]} 21. Qf3 {[%clk 0:01:00.2]} 21... Bc8 {[%clk 0:00:03.3]}
22. Rxd8+ {[%clk 0:00:57.3]} 22... Kxd8 {[%clk 0:00:02.5]} 23. Bxe7+ {[%clk
0:00:56.9]} 23... Kxe7 {[%clk 0:00:02.4]} 24. Qf6+ {[%clk 0:00:57]} 1-0

[Event "*** Titled Tuesday Blitz"]
[Site "Chess.com"]
[Date "2021.03.30"]
[Round "8"]
[White "viktorgen2021"]
[Black "gatocorbis"]
[Result "0-1"]
[WhiteElo "2248"]
[BlackElo "2103"]
[TimeControl "180+1"]
[EndTime "11:27:48 PDT"]
[Termination "gatocorbis won by checkmate"]

1. d4 {[%clk 0:03:00.9]} 1... Nf6 {[%clk 0:02:58.4]} 2. Nf3 {[%clk 0:03:01.2]}
2... g6 {[%clk 0:02:56.2]} 3. g3 {[%clk 0:03:00.4]} 3... Bg7 {[%clk 0:02:54.8]}
4. Bg2 {[%clk 0:03:01.3]} 4... d5 {[%clk 0:02:52.6]} 5. O-O {[%clk 0:03:02.2]}
5... O-O {[%clk 0:02:51.8]} 6. c4 {[%clk 0:03:00.7]} 6... dxc4 {[%clk
0:02:47.8]} 7. Na3 {[%clk 0:03:00]} 7... Nc6 {[%clk 0:02:45.7]} 8. Nxc4 {[%clk
0:02:58.9]} 8... Be6 {[%clk 0:02:44.9]} 9. Nce5 {[%clk 0:02:58.2]} 9... Bd5
{[%clk 0:02:42.9]} 10. Qe1 {[%clk 0:02:47.2]} 10... Nxd4 {[%clk 0:02:35.4]} 11.
Nxd4 {[%clk 0:02:38.1]} 11... Bxg2 {[%clk 0:02:33.9]} 12. Kxg2 {[%clk 0:02:39]}
12... Qxd4 {[%clk 0:02:31.9]} 13. Nf3 {[%clk 0:02:39.9]} 13... Qb6 {[%clk
0:02:28]} 14. Be3 {[%clk 0:02:33]} 14... Qxb2 {[%clk 0:02:26]} 15. Rb1 {[%clk
0:02:32.6]} 15... Qxa2 {[%clk 0:02:24.7]} 16. Rxb7 {[%clk 0:02:31.7]} 16... Nd5
{[%clk 0:02:22.6]} 17. Bd4 {[%clk 0:02:25.9]} 17... Bxd4 {[%clk 0:02:19.9]} 18.
Nxd4 {[%clk 0:02:26.8]} 18... Nf4+ {[%clk 0:02:15.8]} 19. gxf4 {[%clk 0:02:11]}
19... Qd5+ {[%clk 0:02:14.5]} 20. e4 {[%clk 0:02:11.9]} 20... Qxb7 {[%clk
0:02:13.1]} 21. f5 {[%clk 0:02:12.8]} 21... Rad8 {[%clk 0:02:09.7]} 22. Nf3
{[%clk 0:02:10.6]} 22... Qb5 {[%clk 0:02:03.3]} 23. Rg1 {[%clk 0:02:03.3]} 23...
Rd3 {[%clk 0:01:53.2]} 24. Qe2 {[%clk 0:01:57.3]} 24... Rfd8 {[%clk 0:01:51]}
25. Kh1 {[%clk 0:01:51.2]} 25... Qb3 {[%clk 0:01:36.5]} 26. Ne5 {[%clk
0:01:44.1]} 26... Rd1 {[%clk 0:01:32.1]} 27. Qa6 {[%clk 0:01:26.1]} 27... Rxg1+
{[%clk 0:01:26.6]} 28. Kxg1 {[%clk 0:01:25.2]} 28... Qb6 {[%clk 0:01:14.4]} 29.
Qc4 {[%clk 0:01:14.1]} 29... Qf6 {[%clk 0:01:06.3]} 30. Nc6 {[%clk 0:01:11.4]}
30... Rd1+ {[%clk 0:00:59.1]} 31. Kg2 {[%clk 0:01:11.2]} 31... Qg5+ {[%clk
0:00:57.9]} 32. Kf3 {[%clk 0:01:11.1]} 32... Qh5+ {[%clk 0:00:37]} 33. Kf4
{[%clk 0:01:03.9]} 33... g5+ {[%clk 0:00:30.2]} 34. Ke5 {[%clk 0:01:01.2]} 34...
Qxh2+ {[%clk 0:00:27.9]} 35. f4 {[%clk 0:00:56.4]} 35... Qxf4# {[%clk 0:00:25]}
0-1

[Event "*** Titled Tuesday Blitz"]
[Site "Chess.com"]
[Date "2021.03.30"]
[Round "8"]
[White "NiranjanNavalgund"]
[Black "Kildepiotr"]
[Result "0-1"]
[WhiteElo "2502"]
[BlackElo "2678"]
[TimeControl "180+1"]
[EndTime "11:27:55 PDT"]
[Termination "Kildepiotr won by checkmate"]

1. d4 {[%clk 0:03:00.9]} 1... c5 {[%clk 0:02:58.2]} 2. dxc5 {[%clk 0:02:54.3]}
2... e6 {[%clk 0:02:57.5]} 3. Nd2 {[%clk 0:02:53.7]} 3... Bxc5 {[%clk
0:02:57.4]} 4. Ne4 {[%clk 0:02:53.5]} 4... Nf6 {[%clk 0:02:57.9]} 5. Nxc5 {[%clk
0:02:52.5]} 5... Qa5+ {[%clk 0:02:57.8]} 6. Bd2 {[%clk 0:02:52]} 6... Qxc5
{[%clk 0:02:57.9]} 7. Bc3 {[%clk 0:02:51.4]} 7... Nc6 {[%clk 0:02:52.8]} 8. f3
{[%clk 0:02:44.2]} 8... d5 {[%clk 0:02:52]} 9. Bxf6 {[%clk 0:02:41.9]} 9... gxf6
{[%clk 0:02:51.9]} 10. Qd2 {[%clk 0:02:41.7]} 10... Bd7 {[%clk 0:02:37]} 11. e3
{[%clk 0:02:42]} 11... Rc8 {[%clk 0:02:34]} 12. Bd3 {[%clk 0:02:41.9]} 12... Nb4
{[%clk 0:02:31.5]} 13. c3 {[%clk 0:02:39.7]} 13... Nxd3+ {[%clk 0:02:31.5]} 14.
Qxd3 {[%clk 0:02:40.6]} 14... Bb5 {[%clk 0:02:31.7]} 15. Qd4 {[%clk 0:02:40.8]}
15... Ke7 {[%clk 0:02:23.2]} 16. Qxc5+ {[%clk 0:02:39.7]} 16... Rxc5 {[%clk
0:02:22.6]} 17. Ne2 {[%clk 0:02:40.6]} 17... Bxe2 {[%clk 0:02:16.1]} 18. Kxe2
{[%clk 0:02:40.5]} 18... f5 {[%clk 0:02:15.5]} 19. Rad1 {[%clk 0:02:36.2]} 19...
b5 {[%clk 0:02:10.8]} 20. Rd4 {[%clk 0:02:29.7]} 20... a5 {[%clk 0:02:09.5]} 21.
a4 {[%clk 0:02:27]} 21... Rb8 {[%clk 0:02:07.8]} 22. Ra1 {[%clk 0:02:19.7]}
22... bxa4 {[%clk 0:02:06.6]} 23. Rd2 {[%clk 0:02:13.1]} 23... Rcb5 {[%clk
0:02:05.3]} 24. Ra2 {[%clk 0:02:12.5]} 24... a3 {[%clk 0:02:00.8]} 25. bxa3
{[%clk 0:02:11.7]} 25... Rb3 {[%clk 0:01:55.8]} 26. Rdc2 {[%clk 0:02:09.6]}
26... Rc8 {[%clk 0:01:55]} 27. Kd2 {[%clk 0:02:08.4]} 27... a4 {[%clk
0:01:54.3]} 28. Ra1 {[%clk 0:02:06.1]} 28... Kd6 {[%clk 0:01:52.8]} 29. f4
{[%clk 0:01:59.2]} 29... Kc5 {[%clk 0:01:51.2]} 30. Kd3 {[%clk 0:01:53.8]} 30...
Rcb8 {[%clk 0:01:50.3]} 31. Raa2 {[%clk 0:01:47]} 31... Rb1 {[%clk 0:01:49.7]}
32. Rd2 {[%clk 0:01:45.9]} 32... Re1 {[%clk 0:01:39.2]} 33. Rab2 {[%clk
0:01:40.5]} 33... Rb1 {[%clk 0:01:38]} 34. Rxb8 {[%clk 0:01:39.5]} 34... Rxb8
{[%clk 0:01:37.4]} 35. Ra2 {[%clk 0:01:36.5]} 35... Rb3 {[%clk 0:01:35.4]} 36.
Ra1 {[%clk 0:01:36.7]} 36... Rb2 {[%clk 0:01:35.2]} 37. Rg1 {[%clk 0:01:21]}
37... f6 {[%clk 0:01:31.5]} 38. h3 {[%clk 0:01:20.7]} 38... e5 {[%clk
0:01:31.1]} 39. fxe5 {[%clk 0:01:10.6]} 39... fxe5 {[%clk 0:01:32]} 40. e4
{[%clk 0:01:09.4]} 40... fxe4+ {[%clk 0:01:30.4]} 41. Ke3 {[%clk 0:01:09.9]}
41... Rc2 {[%clk 0:01:29.6]} 42. h4 {[%clk 0:01:09.1]} 42... Rxc3+ {[%clk
0:01:27.9]} 43. Kd2 {[%clk 0:01:10]} 43... Rg3 {[%clk 0:01:24.2]} 44. h5 {[%clk
0:01:09.3]} 44... d4 {[%clk 0:01:22.6]} 45. h6 {[%clk 0:01:08.4]} 45... Kd5
{[%clk 0:01:19.9]} 46. Kc2 {[%clk 0:01:06.6]} 46... e3 {[%clk 0:01:15.4]} 47.
Kd3 {[%clk 0:01:06.4]} 47... e4+ {[%clk 0:01:15.5]} 48. Ke2 {[%clk 0:01:06.7]}
48... d3+ {[%clk 0:01:15.6]} 49. Kd1 {[%clk 0:01:06.9]} 49... Kd4 {[%clk
0:01:14.1]} 50. Rh1 {[%clk 0:00:48.3]} 50... Rxg2 {[%clk 0:01:13.1]} 51. Rh4
{[%clk 0:00:46]} 51... Rg1# {[%clk 0:01:11.7]} 0-1

[Event "*** Titled Tuesday Blitz"]
[Site "Chess.com"]
[Date "2021.03.30"]
[Round "8"]
[White "guillembaches"]
[Black "Irina_Baraeva"]
[Result "1-0"]
[WhiteElo "2468"]
[BlackElo "2307"]
[TimeControl "180+1"]
[EndTime "11:27:56 PDT"]
[Termination "guillembaches won by resignation"]

1. e4 {[%clk 0:03:00.9]} 1... e6 {[%clk 0:02:59.5]} 2. d4 {[%clk 0:03:00.5]}
2... d5 {[%clk 0:02:59.6]} 3. exd5 {[%clk 0:03:01.4]} 3... exd5 {[%clk
0:02:59.9]} 4. Nf3 {[%clk 0:03:02]} 4... Bd6 {[%clk 0:03:00]} 5. c4 {[%clk
0:03:01.3]} 5... c6 {[%clk 0:02:59.6]} 6. Nc3 {[%clk 0:03:01.5]} 6... Ne7 {[%clk
0:02:59.2]} 7. Bd3 {[%clk 0:03:01.6]} 7... O-O {[%clk 0:02:56.8]} 8. O-O {[%clk
0:03:01]} 8... Bf5 {[%clk 0:02:46.4]} 9. Bg5 {[%clk 0:02:53.4]} 9... f6 {[%clk
0:02:45.3]} 10. Bh4 {[%clk 0:02:53]} 10... Bg4 {[%clk 0:02:36.2]} 11. Bg3 {[%clk
0:02:45.4]} 11... Qc7 {[%clk 0:02:20.8]} 12. Rc1 {[%clk 0:02:22.1]} 12... dxc4
{[%clk 0:02:12.7]} 13. Bxc4+ {[%clk 0:02:21.8]} 13... Kh8 {[%clk 0:02:11.7]} 14.
Qd3 {[%clk 0:02:11.5]} 14... Nd7 {[%clk 0:02:08.4]} 15. Rfe1 {[%clk 0:02:04.4]}
15... Nb6 {[%clk 0:02:00.4]} 16. Bb3 {[%clk 0:01:59.8]} 16... Rad8 {[%clk
0:01:33.8]} 17. Nb5 {[%clk 0:01:50.9]} 17... Bf5 {[%clk 0:00:37.2]} 18. Nxc7
{[%clk 0:01:41.2]} 18... Bxd3 {[%clk 0:00:36.2]} 19. Bxd6 {[%clk 0:01:37.1]}
19... Rxd6 {[%clk 0:00:36]} 20. Rxe7 {[%clk 0:01:36.6]} 20... Bf5 {[%clk
0:00:33.8]} 21. Ne6 {[%clk 0:01:27.7]} 21... Bxe6 {[%clk 0:00:26.5]} 22. Rxe6
{[%clk 0:01:27.8]} 22... Rfd8 {[%clk 0:00:26.6]} 23. Rxd6 {[%clk 0:01:25.9]}
23... Rxd6 {[%clk 0:00:27.1]} 24. Re1 {[%clk 0:01:26]} 24... h6 {[%clk
0:00:27.5]} 25. Re8+ {[%clk 0:01:21.5]} 25... Kh7 {[%clk 0:00:27.7]} 26. Bc2+
{[%clk 0:01:21.7]} 26... g6 {[%clk 0:00:27.3]} 27. Re7+ {[%clk 0:01:22]} 27...
Kg8 {[%clk 0:00:27.7]} 28. Bxg6 {[%clk 0:01:22]} 28... c5 {[%clk 0:00:26.5]} 29.
Re4 {[%clk 0:01:00.7]} 29... cxd4 {[%clk 0:00:22.5]} 30. Rxd4 {[%clk 0:01:00]}
30... Rc6 {[%clk 0:00:22.4]} 31. Rd1 {[%clk 0:00:57.7]} 31... Nc4 {[%clk
0:00:21.5]} 32. Be4 {[%clk 0:00:55.4]} 32... Rc5 {[%clk 0:00:20.2]} 33. Bd5+
{[%clk 0:00:54.6]} 33... Kg7 {[%clk 0:00:18.9]} 34. Bxc4 {[%clk 0:00:54.4]}
34... Rxc4 {[%clk 0:00:19.6]} 35. Kf1 {[%clk 0:00:54.3]} 35... Rc2 {[%clk
0:00:19.9]} 36. Rd2 {[%clk 0:00:54.5]} 36... Rc1+ {[%clk 0:00:20.4]} 37. Ke2
{[%clk 0:00:54.7]} 1-0